[Event "Turkish Women-ch Arzum 2022"]
[Site "Ayvalik"]
[Date "2022.03.06"]
[Round "2.15"]
[White "Yurdakul, Didem Nuray"]
[Black "Engin, Cagla"]
[Result "1-0"]
[ECO "B06"]
[WhiteElo "1804"]
[BlackElo "1436"]
[Annotator "NA"]
[PlyCount "69"]
[EventDate "2022.03.04"]
[EventType "swiss"]
[EventCountry "TUR"]
[SourceTitle "playchess.com"]
[Source "ChessBase"]
[SourceQuality "1"]
[TimeControl "5400+30"]

{[%evp 12,41,14,-18,8,-4,14,-9,0,7,6,-2,0,-62,-56,-61,-53,-39,-54,32767,32767,-60,-51,-108,-66,-80,-54,-66,-53,-64,-27,-30]} 1. e4 {[%emt 0:07:00]} d6 {[%emt 0:01:00]} 2. d4 {[%emt 0:00:30]} g6 {[%emt 0:00:30]} 3. Nc3 {[%emt 0:00:00]} Bg7 {[%emt 0:00:00]} 4. Be3 {[%emt 0:00:00]} Nd7 {[%emt 0:01:00]} 5. Qd2 {[%emt 0:01:30]} a6 {[%emt 0:01:30]} 6. Bd3 {[%emt 0:00:00]} c5 {[%emt 0:01:30]} 7. Nce2 {[%emt 0:03:00]} b5 {[%emt 0:09:30]} 8. c3 {[%emt 0:00:30]} Bb7 {[%emt 0:01:30]} 9. a4 {[%emt 0:03:30]} c4 {[%emt 0:05:30]} 10. Bc2 {[%emt 0:00:00]} Ngf6 {[%emt 0:07:30]} 11. Ng3 {[%emt 0:01:00]} Ng4 {[%emt 0:03:30]} 12. f4 {[%emt 0:07:30]} ({White should play} 12. Bg5 $11) 12... Nxe3 {[%emt 0:01:30]} 13. Qxe3 {[%emt 0:00:30]} Bh6 {[%emt 0:04:30]} (13... e5 $5 {[%cal Re5d4]}) 14. Nh3 {[%emt 0:03:30]} O-O {[%emt 0:04:30]} 15. O-O {[%emt 0:00:30]} e5 {[%emt 0:02:30]} 16. Qf2 {[%emt 0:04:30]} Bg7 {[%emt 0:11:30]} 17. f5 {[%emt 0:03:30]} ({White should try} 17. fxe5 $15 dxe5 18. d5) 17... exd4 {[%emt 0:04:30]} 18. cxd4 {[%emt 0:01:30]} Qb6 {[%emt 0:00:30]} 19. Rad1 {[%emt 0:00:30]} Nf6 {[%emt 0:00:30]} 20. Qf4 {[%emt 0:08:30]} Rae8 {[%emt 0:08:30]} 21. Nf2 $11 {[%emt 0:00:30]} Nd7 {[%emt 0:05:30]} 22. Ne2 {[%emt 0:04:30]} Nf6 {[%emt 0:00:30]} 23. g4 {[%emt 0:02:30]} h6 {[%emt 0:02:30]} 24. h4 {[%emt 0:04:30]} Nd5 {[%emt 0:04:53]} 25. Qd2 {[%emt 0:04:30]} Nf6 {[%emt 0:03:25]} 26. Ng3 {[%emt 0:01:30]} Rd8 {[%emt 0:03:51]} 27. g5 {[%emt 0:03:30]} hxg5 {[%emt 0:01:14]} 28. hxg5 {[%emt 0:00:30]} Nd7 {[%emt 0:01:48]} 29. f6 {[%emt 0:00:30]} Bh8 {[%emt 0:00:30]} 30. Ng4 {[%emt 0:00:00]} Rfe8 {[%emt 0:00:00]} 31. Qh2 {[%emt 0:00:00]} Ne5 {[%emt 0:00:31]} 32. Nh6+ {[%emt 0:02:30]} Kf8 {[%emt 0:00:17]} 33. Kg2 {[%emt 0:02:30]} Nd3 {[%emt 0:01:20]} 34. Bxd3 {[%emt 0:00:30]} cxd3 {[%emt 0:00:18]} 35. Nhf5 {[%emt 0:00:30]} 1-0

[Event "Turkish Women-ch Arzum 2022"]
[Site "Ayvalik"]
[Date "2022.03.06"]
[Round "2.16"]
[White "Acar, Ilayda"]
[Black "Akin, Duru"]
[Result "1-0"]
[ECO "B27"]
[WhiteElo "1460"]
[BlackElo "1563"]
[Annotator "NA"]
[PlyCount "133"]
[EventDate "2022.03.04"]
[EventType "swiss"]
[EventCountry "TUR"]
[SourceTitle "playchess.com"]
[Source "ChessBase"]
[SourceQuality "1"]
[TimeControl "5400+30"]

1. e4 c5 2. Nf3 g6 3. d4 cxd4 4. Qxd4 Nf6 {[%emt 0:00:30]} 5. Nc3 {[%emt 0:03:00]} Nc6 {[%emt 0:00:30]} 6. Qa4 {[%emt 0:00:30]} Bg7 {[%emt 0:00:30]} 7. e5 {[%emt 0:00:30]} Ng8 {[%emt 0:03:30]} 8. Bf4 {[%emt 0:01:30]} Nh6 {[%emt 0:07:30]} 9. h3 {[%emt 0:05:30]} d5 {[%emt 0:17:30]} 10. Bb5 {[%emt 0:04:30]} Bd7 {[%emt 0:17:30]} 11. Nxd5 {[%emt 0:11:30]} a6 {[%emt 0:06:30]} 12. Rd1 {[%emt 0:02:30]} O-O {[%emt 0:23:57]} 13. Bxc6 {[%emt 0:06:30]} Bxc6 {[%emt 0:00:04]} 14. Qb3 {[%emt 0:05:30]} Qa5+ {[%emt 0:00:07]} 15. Qb4 {[%emt 0:01:30]} Qxa2 {[%emt 0:01:59]} 16. Nxe7+ {[%emt 0:01:30]} Kh8 {[%emt 0:00:04]} 17. Nxc6 {[%emt 0:02:30]} bxc6 {[%emt 0:00:02]} 18. Qc3 {[%emt 0:01:30]} Rab8 {[%emt 0:02:32]} 19. b3 {[%emt 0:00:30]} Qa3 {[%emt 0:00:34]} 20. Bg5 {[%emt 0:04:30]} Rfe8 {[%emt 0:02:06]} 21. Ra1 {[%emt 0:10:30]} Qb4 {[%emt 0:00:35]} 22. Qxb4 {[%emt 0:00:30]} Rxb4 {[%emt 0:00:00]} 23. Rxa6 {[%emt 0:01:30]} Bxe5 {[%emt 0:00:37]} 24. O-O {[%emt 0:00:30]} Bg7 {[%emt 0:05:22]} 25. Rxc6 {[%emt 0:01:30]} Nf5 {[%emt 0:00:06]} 26. Rd1 {[%emt 0:05:30]} h6 {[%emt 0:00:32]} 27. Bf6 {[%emt 0:03:30]} Re2 {[%emt 0:03:35]} 28. g4 {[%emt 0:06:30]} Bxf6 {[%emt 0:02:37]} 29. gxf5 {[%emt 0:02:34]} Bh4 {[%emt 0:00:52]} 30. Nxh4 {[%emt 0:01:05]} Rxh4 {[%emt 0:00:06]} 31. fxg6 {[%emt 0:00:01]} fxg6 {[%emt 0:02:48]} 32. Rd7 {[%emt 0:00:38]} Rhe4 {[%emt 0:00:47]} 33. Rxg6 {[%emt 0:01:17]} Rxc2 {[%emt 0:00:06]} 34. Rxh6+ {[%emt 0:00:31]} Kg8 {[%emt 0:00:04]} 35. Rb6 {[%emt 0:00:05]} Re8 {[%emt 0:01:07]} 36. Rbb7 {[%emt 0:00:17]} Rce2 {[%emt 0:00:00]} 37. b4 {[%emt 0:00:47]} Rb2 {[%emt 0:01:04]} 38. b5 {[%emt 0:00:59]} Rbe2 {[%emt 0:00:28]} 39. b6 {[%emt 0:00:52]} Rb2 {[%emt 0:00:32]} 40. Kg2 {[%emt 0:00:33]} Rb3 {[%emt 0:00:00]} 41. f3 {[%emt 0:01:05]} Rb1 {[%emt 0:00:00]} 42. h4 {[%emt 0:00:32]} Kh8 {[%emt 0:00:27]} 43. Rd5 {[%emt 0:01:13]} Rg8+ {[%emt 0:00:34]} 44. Rg5 {[%emt 0:00:30]} Rd8 {[%emt 0:00:30]} 45. Kf2 {[%emt 0:00:30]} Re8 {[%emt 0:00:45]} 46. Kg3 {[%emt 0:04:06]} Rg1+ {[%emt 0:00:19]} 47. Kf4 {[%emt 0:00:00]} Rf1 {[%emt 0:01:08]} 48. Rf7 {[%emt 0:01:02]} Rb1 {[%emt 0:00:12]} 49. Rf6 {[%emt 0:02:16]} Kh7 {[%emt 0:00:16]} 50. h5 {[%emt 0:03:28]} Rb4+ {[%emt 0:00:07]} 51. Kg3 {[%emt 0:00:20]} Re1 {[%emt 0:00:37]} 52. Kf2 {[%emt 0:00:41]} Re7 {[%emt 0:00:19]} 53. Rgg6 {[%emt 0:01:40]} Rb2+ {[%emt 0:01:25]} 54. Kg3 {[%emt 0:00:33]} Re1 {[%emt 0:01:23]} 55. Rf7+ {[%emt 0:00:43]} Kh8 {[%emt 0:00:06]} 56. Rd6 {[%emt 0:02:24]} Rg1+ {[%emt 0:00:22]} 57. Kf4 {[%emt 0:00:16]} Rb4+ {[%emt 0:00:14]} 58. Kf5 {[%emt 0:01:01]} Rb5+ {[%emt 0:00:12]} 59. Kf6 {[%emt 0:00:24]} Rg8 {[%emt 0:00:09]} 60. b7 {[%emt 0:00:29]} Rxh5 {[%emt 0:00:10]} 61. Ke7 {[%emt 0:00:30]} Rh1 {[%emt 0:01:29]} 62. Kd7 {[%emt 0:00:41]} Rh4 {[%emt 0:01:01]} 63. Kc7 {[%emt 0:00:32]} Rc4+ {[%emt 0:00:07]} 64. Rc6 {[%emt 0:00:30]} Rxc6+ {[%emt 0:00:30]} 65. Kxc6 {[%emt 0:00:00]} Rg6+ {[%emt 0:00:30]} 66. Kc7 {[%emt 0:00:08]} Kg8 {[%emt 0:00:30]} 67. Rd7 {[%emt 0:00:00]} 1-0

[Event "Turkish Women-ch Arzum 2022"]
[Site "Ayvalik"]
[Date "2022.03.06"]
[Round "2.18"]
[White "Kocyigit, Buse Naz"]
[Black "Karatiken, Beray"]
[Result "1-0"]
[ECO "C41"]
[WhiteElo "2023"]
[BlackElo "1380"]
[Annotator "NA"]
[PlyCount "105"]
[EventDate "2022.03.04"]
[EventType "swiss"]
[EventCountry "TUR"]
[SourceTitle "playchess.com"]
[Source "ChessBase"]
[SourceQuality "1"]
[TimeControl "5400+30"]

1. Nf3 {[%emt 0:06:00]} Nf6 {[%emt 0:01:00]} 2. d4 {[%emt 0:00:30]} d6 {[%emt 0:00:30]} 3. Nc3 {[%emt 0:01:30]} Nbd7 {[%emt 0:00:30]} 4. e4 {[%emt 0:00:00]} e5 {[%emt 0:01:30]} 5. g4 {[%emt 0:00:00]} exd4 {[%emt 0:05:30]} ({Black should try} 5... Nxg4 $11 6. Rg1 {[#]} exd4 $1 7. Nxd4 Ngf6) 6. Nxd4 {[%emt 0:05:30]} Nc5 {[%emt 0:02:30] [#]} (6... d5 $14) 7. g5 $1 {[%emt 0:10:30]} Nfd7 {[%emt 0:10:30]} 8. Be3 {[%emt 0:00:30]} c6 {[%emt 0:04:30] [#]} 9. Qd2 $1 {[%emt 0:02:30]} Qc7 {[%emt 0:06:30]} 10. O-O-O {[%emt 0:04:30]} b5 {[%emt 0:09:30]} 11. Nf5 {[%emt 0:07:30]} b4 {[%emt 0:04:30]} 12. Nb1 {[%emt 0:00:00]} Ne5 {[%emt 0:20:30]} 13. Nxd6+ {[%emt 0:12:00]} Bxd6 {[%emt 0:00:30]} 14. Qxd6 {[%emt 0:00:30]} Qxd6 {[%emt 0:00:30]} 15. Rxd6 {[%emt 0:00:00]} Nxe4 $16 {[%emt 0:03:30]} 16. Rd4 {[%emt 0:00:00]} f5 {[%emt 0:01:30]} 17. gxf6 {[%emt 0:01:30]} Nxf6 {[%emt 0:00:30]} 18. Rxb4 {[%emt 0:01:30]} O-O {[%emt 0:01:30]} 19. Nc3 {[%emt 0:09:30]} Nfg4 {[%emt 0:02:30]} 20. Bc5 {[%emt 0:02:30]} Rf7 {[%emt 0:09:36]} 21. f4 {[%emt 0:04:30]} Nd7 {[%emt 0:03:01]} 22. Bd6 {[%emt 0:00:30]} a5 {[%emt 0:04:19]} 23. Rd4 {[%emt 0:05:30]} Ba6 {[%emt 0:03:57]} 24. Bg2 {[%emt 0:00:30]} Rc8 {[%emt 0:00:43]} 25. Ne4 {[%emt 0:00:30]} c5 {[%emt 0:01:01]} 26. Rd2 {[%emt 0:01:30]} Ne3 {[%emt 0:00:28]} 27. Ng5 {[%emt 0:10:02]} Rf6 {[%emt 0:00:01]} 28. Be7 {[%emt 0:00:38]} Rxf4 {[%emt 0:00:03]} 29. Bh3 {[%emt 0:01:28]} Re8 {[%emt 0:01:15]} 30. Rxd7 {[%emt 0:01:40]} h6 {[%emt 0:00:19]} 31. Ne6 {[%emt 0:03:47]} Rf2 {[%emt 0:01:22]} 32. Bxc5 {[%emt 0:02:00]} Rxc2+ {[%emt 0:00:30]} 33. Kb1 {[%emt 0:00:00]} Rb8 {[%emt 0:00:23]} 34. Bd4 {[%emt 0:00:15]} Rb7 {[%emt 0:00:30]} 35. Rxb7 {[%emt 0:00:30]} Bxb7 {[%emt 0:00:54]} 36. Bxe3 {[%emt 0:03:55]} Re2 {[%emt 0:00:05]} 37. Rg1 {[%emt 0:01:11]} Rxe3 {[%emt 0:00:03]} 38. Rxg7+ {[%emt 0:00:34]} Kh8 {[%emt 0:00:30]} 39. Rxb7 {[%emt 0:00:30]} Rxh3 {[%emt 0:00:00]} 40. Ra7 {[%emt 0:00:01]} Rxh2 {[%emt 0:00:08]} 41. Rxa5 {[%emt 0:00:30]} Rh1+ {[%emt 0:00:30]} 42. Kc2 {[%emt 0:00:30]} Rh2+ {[%emt 0:00:00]} 43. Kc3 {[%emt 0:00:00]} Kg8 {[%emt 0:00:00]} 44. b4 {[%emt 0:00:00]} Kf7 {[%emt 0:00:00]} 45. Nd4 {[%emt 0:00:23]} h5 {[%emt 0:00:00]} 46. b5 {[%emt 0:00:00]} Ke7 {[%emt 0:00:11]} 47. b6 {[%emt 0:00:17]} Rh3+ {[%emt 0:00:16]} 48. Kc4 {[%emt 0:00:30]} Kd7 {[%emt 0:00:00]} 49. Kd5 {[%emt 0:00:40]} Rc3 {[%emt 0:00:34]} 50. Ra7+ {[%emt 0:00:31]} Kc8 {[%emt 0:00:17]} 51. b7+ {[%emt 0:01:41]} Kc7 {[%emt 0:01:57]} 52. Nb5+ {[%emt 0:00:38]} Kb8 {[%emt 0:00:03]} 53. Ke4 {[%emt 0:00:50]} 1-0

[Event "Turkish Women-ch Arzum 2022"]
[Site "Ayvalik"]
[Date "2022.03.06"]
[Round "2.20"]
[White "Onur, Cigdem"]
[Black "Bursali, Ela"]
[Result "1/2-1/2"]
[ECO "D00"]
[WhiteElo "2012"]
[BlackElo "1353"]
[Annotator "NA"]
[PlyCount "57"]
[EventDate "2022.03.04"]
[EventType "swiss"]
[EventCountry "TUR"]
[SourceTitle "playchess.com"]
[Source "ChessBase"]
[SourceQuality "1"]
[TimeControl "5400+30"]

1. d4 d5 2. Bf4 Nf6 3. e3 {[%emt 0:02:00]} c5 {[%emt 0:01:00]} 4. Nc3 {[%emt 0:00:30]} a6 {[%emt 0:03:30]} 5. dxc5 {[%emt 0:08:30]} Nc6 {[%emt 0:03:30]} 6. Nf3 {[%emt 0:03:30]} e6 {[%emt 0:00:30]} 7. Na4 {[%emt 0:00:30]} Nd7 {[%emt 0:00:30]} 8. c4 {[%emt 0:13:30]} ({Much weaker is} 8. Bd6 Bxd6 9. cxd6 b5 $15) 8... Qa5+ {[%emt 0:08:30]} (8... Nxc5 $11 9. Nxc5 Bxc5) 9. Nc3 {[%emt 0:00:30]} dxc4 {[%emt 0:01:30]} 10. Bxc4 {[%emt 0:04:30]} Bxc5 {[%emt 0:03:30]} 11. a3 {[%emt 0:08:30]} b5 {[%emt 0:07:30]} 12. Bd3 {[%emt 0:12:30]} ({But not} 12. b4 Nxb4 13. axb4 Qxb4 14. Bxb5 Qxc3+ 15. Kf1 O-O $15) 12... b4 {[%emt 0:10:30]} ({Better is} 12... Be7 $14) 13. axb4 {[%emt 0:02:30]} Qxb4 {[%emt 0:00:30]} 14. O-O {[%emt 0:03:30]} Nf6 $18 {[%emt 0:05:30]} (14... Be7 $16 {keeps fighting.}) 15. Ra4 {[%emt 0:19:52]} Qb7 {[%emt 0:16:30]} 16. Rc4 {[%emt 0:12:20]} Be7 {[%emt 0:04:30]} 17. Ne4 {[%emt 0:00:38]} Nd5 {[%emt 0:02:30]} 18. Bd6 {[%emt 0:00:52]} O-O {[%emt 0:01:30]} 19. Nc5 {[%emt 0:03:48]} Qxb2 {[%emt 0:05:30]} 20. Bxe7 {[%emt 0:00:28]} Ncxe7 {[%emt 0:00:30]} 21. Bxh7+ {[%emt 0:01:30]} Kxh7 {[%emt 0:00:30]} 22. Rh4+ {[%emt 0:00:22]} Kg8 {[%emt 0:00:30]} 23. Ng5 {[%emt 0:00:41]} Ng6 {[%emt 0:02:30]} 24. Nce4 {[%emt 0:00:47]} Nxh4 {[%emt 0:02:57]} 25. Qh5 {[%emt 0:00:04]} Rd8 {[%emt 0:00:35]} 26. Qxf7+ {[%emt 0:00:05]} Kh8 {[%emt 0:00:30]} 27. Qh5+ {[%emt 0:00:30]} Kg8 {[%emt 0:00:00]} 28. Qf7+ {[%emt 0:01:05]} Kh8 {[%emt 0:00:00]} 29. Qh5+ {[%emt 0:00:33]} 1/2-1/2

[Event "Turkish Women-ch Arzum 2022"]
[Site "Ayvalik"]
[Date "2022.03.06"]
[Round "2.21"]
[White "Aksoy, Duru"]
[Black "Ince, Safiye Oyku"]
[Result "0-1"]
[ECO "A00"]
[WhiteElo "1223"]
[BlackElo "1893"]
[Annotator "NA"]
[PlyCount "68"]
[EventDate "2022.03.04"]
[EventType "swiss"]
[EventCountry "TUR"]
[SourceTitle "playchess.com"]
[Source "ChessBase"]
[SourceQuality "1"]
[TimeControl "5400+30"]

{[%evp 8,47,-26,-22,-12,-27,12,-33,-16,-18,-23,-37,-14,-78,-30,-146,-146,-144,-138,-131,-136,-1133,-1256,-1125,-1252,-1176,-1253,-1364,-1422,-1412,-1444,-1598,-1351,-1640,-1311,-1390,-1401,-1823,-2102,-2278,-2557,-2674]} 1. b4 {[%emt 0:01:00]} e6 {[%emt 0:03:00]} 2. Bb2 {[%emt 0:00:30]} Nf6 {[%emt 0:00:30]} 3. b5 {[%emt 0:01:30]} d5 {[%emt 0:01:30]} 4. e3 {[%emt 0:04:30]} Bd6 {[%emt 0:16:30]} 5. Nf3 {[%emt 0:07:30]} Nbd7 {[%emt 0:01:30]} 6. Be2 {[%emt 0:03:30]} e5 {[%emt 0:02:30]} 7. c4 {[%emt 0:05:30]} (7. d4 $11 Qe7 8. O-O) 7... e4 {[%emt 0:11:30]} 8. Nd4 $1 {[%emt 0:04:30]} dxc4 {[%emt 0:02:30]} 9. Bxc4 {[%emt 0:05:30]} Ne5 {[%emt 0:00:30]} 10. Qc2 {[%emt 0:05:30]} (10. Be2 $11 {remains equal.}) 10... O-O {[%emt 0:01:30]} 11. O-O {[%emt 0:01:30]} (11. Be2 $1 $11) 11... Nxc4 {[%emt 0:03:30]} 12. Qxc4 {[%emt 0:01:30] [#]} Bxh2+ $1 {[%emt 0:00:00]} 13. Kxh2 {[%emt 0:07:30]} Ng4+ {[%emt 0:06:00]} 14. Kg3 $2 {[%emt 0:00:30]} (14. Kg1 $17 Qd6 15. Nf3 (15. Rc1 $2 Qh2+ 16. Kf1 Ne5 $19) 15... exf3 16. Qf4) 14... Qd6+ {[%emt 0:00:00]} ({And not} 14... Ne5 15. Qc3 Qd6 16. Ba3 Qg6+ 17. Kh2 Nf3+ 18. gxf3 $11) 15. f4 {[%emt 0:04:30]} exf3+ {[%emt 0:00:00]} 16. Kxf3 {[%emt 0:01:30]} Ne5+ {[%emt 0:00:30]} 17. Ke2 {[%emt 0:01:30]} Nxc4 {[%emt 0:00:00]} 18. Bc3 {[%emt 0:01:30]} Bg4+ {[%emt 0:00:00]} 19. Nf3 {[%emt 0:01:30]} Qg3 {[%emt 0:00:30]} 20. Rf2 {[%emt 0:00:30]} Nd6 {[%emt 0:01:30]} 21. d3 {[%emt 0:01:30]} Nxb5 {[%emt 0:02:30]} 22. Be1 {[%emt 0:02:30]} Qe5 {[%emt 0:00:30]} 23. d4 {[%emt 0:02:30]} Nxd4+ {[%emt 0:00:30]} 24. Kf1 $19 {[%emt 0:01:30]} Nxf3 {[%emt 0:00:30]} 25. Bc3 {[%emt 0:00:30]} Nh2+ {[%emt 0:00:00]} 26. Kg1 {[%emt 0:01:30]} Qxe3 {[%emt 0:01:00]} 27. Bd2 {[%emt 0:01:30]} Qd4 {[%emt 0:00:30]} 28. Nc3 {[%emt 0:00:30]} Be6 {[%emt 0:00:30]} 29. Rd1 {[%emt 0:01:30]} Ng4 {[%emt 0:00:30]} 30. Be1 {[%emt 0:00:30]} Qe3 {[%emt 0:00:30]} 31. Nb1 {[%emt 0:01:30]} Rad8 {[%emt 0:00:30]} 32. Bd2 {[%emt 0:02:30]} Qxf2+ {[%emt 0:00:30]} 33. Kh1 {[%emt 0:00:30]} Bd5 {[%emt 0:00:00]} 34. Rg1 {[%emt 0:00:30]} Qh4# {[%emt 0:00:00]} 0-1

[Event "Turkish Women-ch Arzum 2022"]
[Site "Ayvalik"]
[Date "2022.03.06"]
[Round "2.22"]
[White "Hereklioglu, Sude"]
[Black "Susin, Derya Defne"]
[Result "1-0"]
[ECO "D02"]
[WhiteElo "1924"]
[BlackElo "1285"]
[Annotator "NA"]
[PlyCount "51"]
[EventDate "2022.03.04"]
[EventType "swiss"]
[EventCountry "TUR"]
[SourceTitle "playchess.com"]
[Source "ChessBase"]
[SourceQuality "1"]
[TimeControl "5400+30"]

{[%evp 8,34,24,16,22,-3,29,25,22,20,19,22,37,-4,4,-2,-2,-34,69,35,71,14,106,101,109,39,24,10,12]} 1. Nf3 Nf6 2. g3 {[%emt 0:01:30]} g6 {[%emt 0:02:30]} 3. Bg2 {[%emt 0:00:30]} Bg7 {[%emt 0:01:30]} 4. O-O {[%emt 0:00:30]} d5 {[%emt 0:03:30]} 5. d4 {[%emt 0:03:30]} O-O 6. b3 c6 {[%emt 0:11:30]} (6... c5 {is superior.}) 7. Bb2 {[%emt 0:10:00]} Bf5 {[%emt 0:04:30]} 8. Nbd2 {[%emt 0:04:30]} Nbd7 {[%emt 0:06:30]} 9. c4 {[%emt 0:01:30]} Qb6 {[%emt 0:05:30]} 10. c5 {[%emt 0:07:30]} Qc7 {[%emt 0:04:30]} 11. Nh4 {[%emt 0:01:30]} e6 {[%emt 0:06:30]} 12. f3 {[%emt 0:05:30]} (12. Nxf5 $11 exf5 13. a4) 12... g5 {[%emt 0:07:30]} (12... Bh6 $15) 13. Nxf5 {[%emt 0:00:30]} exf5 {[%emt 0:00:00]} 14. e4 {[%emt 0:02:30]} fxe4 {[%emt 0:03:00]} (14... f4 $11 {keeps the balance.}) 15. fxe4 {[%emt 0:00:30]} dxe4 {[%emt 0:00:30]} 16. Nxe4 {[%emt 0:07:30]} (16. Bxe4 $16 h6 17. Bb1) 16... Nxe4 {[%emt 0:06:30]} 17. Bxe4 {[%emt 0:00:30]} Nxc5 $11 {[%emt 0:10:30]} 18. Bb1 {[%emt 0:16:30]} Ne6 {[%emt 0:04:30]} 19. Qd3 {[%emt 0:02:30]} Rfd8 {[%emt 0:05:30]} 20. Qxh7+ {[%emt 0:00:30]} Kf8 {[%emt 0:00:30]} 21. d5 {[%emt 0:01:30]} Nd4 {[%emt 0:15:59]} 22. Bg6 {[%emt 0:02:30]} Rd7 {[%emt 0:02:44]} 23. Rad1 {[%emt 0:00:30]} Ne2+ {[%emt 0:01:59]} 24. Kh1 {[%emt 0:00:30]} Bxb2 {[%emt 0:01:33]} 25. d6 {[%emt 0:00:00]} f6 {[%emt 0:02:50]} 26. Qh8# {[%emt 0:00:00]} 1-0

[Event "Turkish Women-ch Arzum 2022"]
[Site "Ayvalik"]
[Date "2022.03.06"]
[Round "2.23"]
[White "Buyuk, Elvin Esma"]
[Black "Incecik, Seyma Zeynep"]
[Result "0-1"]
[ECO "A06"]
[WhiteElo "1326"]
[BlackElo "1777"]
[Annotator "NA"]
[PlyCount "66"]
[EventDate "2022.03.04"]
[EventType "swiss"]
[EventCountry "TUR"]
[SourceTitle "playchess.com"]
[Source "ChessBase"]
[SourceQuality "1"]
[TimeControl "5400+30"]

1. d4 d5 2. Nf3 Nf6 3. c4 e6 4. e3 c6 5. b3 Nbd7 6. Bb2 Bd6 7. Bd3 b6 8. O-O Bb7 9. Nbd2 O-O 10. Ne5 c5 11. Qc2 h6 {[%emt 0:07:00]} 12. Rac1 {[%emt 0:15:30]} Rc8 {[%emt 0:06:30]} 13. Qb1 {[%emt 0:04:30]} Bxe5 {[%emt 0:08:30]} 14. dxe5 {[%emt 0:01:30]} Ng4 {[%emt 0:01:30]} 15. cxd5 {[%emt 0:03:30]} Ndxe5 {[%emt 0:06:30]} 16. Bh7+ {[%emt 0:07:30]} Kh8 {[%emt 0:00:30]} 17. h3 {[%emt 0:00:00]} Nf6 {[%emt 0:05:30]} 18. Bxe5 {[%emt 0:03:00]} Qxd5 {[%emt 0:01:30]} 19. Nf3 {[%emt 0:05:30]} Nxh7 {[%emt 0:00:30]} 20. Rfd1 {[%emt 0:01:30]} Qc6 {[%emt 0:02:30]} 21. Rd6 {[%emt 0:03:30]} Qe8 {[%emt 0:03:30]} 22. Nh4 {[%emt 0:02:30]} Rc6 {[%emt 0:01:30]} 23. Rd2 {[%emt 0:05:30]} Rc8 {[%emt 0:11:30]} 24. Rcd1 {[%emt 0:04:30]} Bc6 {[%emt 0:00:30]} 25. Nf3 {[%emt 0:07:30]} Bxf3 {[%emt 0:02:30]} 26. gxf3 {[%emt 0:01:30]} Ng5 {[%emt 0:01:30]} 27. Kg2 {[%emt 0:00:00]} f6 {[%emt 0:00:30]} 28. f4 {[%emt 0:05:00]} Qc6+ {[%emt 0:02:30]} 29. Kf1 {[%emt 0:02:30]} Qh1+ {[%emt 0:00:30]} 30. Ke2 {[%emt 0:00:30]} Qf3+ {[%emt 0:00:30]} 31. Ke1 {[%emt 0:00:30]} Ne4 {[%emt 0:00:30]} 32. Bb2 {[%emt 0:06:30]} Nxd2 {[%emt 0:00:30]} 33. Rxd2 {[%emt 0:00:30]} Qh1+ {[%emt 0:00:30]} 0-1

[Event "Turkish Women-ch Arzum 2022"]
[Site "Ayvalik"]
[Date "2022.03.06"]
[Round "2.24"]
[White "Gedik, Eylul Ceren"]
[Black "Engel, Ecrin Tuana"]
[Result "0-1"]
[ECO "B33"]
[WhiteElo "1282"]
[BlackElo "1250"]
[Annotator "NA"]
[PlyCount "88"]
[EventDate "2022.03.04"]
[EventType "swiss"]
[EventCountry "TUR"]
[SourceTitle "playchess.com"]
[Source "ChessBase"]
[SourceQuality "1"]
[TimeControl "5400+30"]

1. e4 c5 2. Nf3 Nc6 3. d4 cxd4 4. Nxd4 Qb6 5. Nb3 Nf6 6. Nc3 e6 7. Qe2 a6 8. g4 d6 9. Be3 Qc7 10. g5 Nd7 11. f4 Be7 12. O-O-O b5 {[%emt 0:06:30]} 13. Qf2 {[%emt 0:14:00]} Bb7 {[%emt 0:09:30]} 14. Bg2 {[%emt 0:02:30]} Rc8 {[%emt 0:03:30]} 15. Kb1 {[%emt 0:15:30]} Na5 {[%emt 0:24:30]} 16. h4 {[%emt 0:12:30]} Nc4 {[%emt 0:05:30]} 17. Bc1 {[%emt 0:01:30]} f6 {[%emt 0:06:30]} 18. f5 {[%emt 0:07:30]} exf5 {[%emt 0:04:30]} 19. exf5 {[%emt 0:03:30]} Ndb6 {[%emt 0:01:30]} 20. Nd4 {[%emt 0:03:30]} Kf7 {[%emt 0:10:30]} 21. Ne6 {[%emt 0:13:30]} Qd7 {[%emt 0:02:30]} 22. g6+ {[%emt 0:10:41]} Kg8 {[%emt 0:04:30]} 23. gxh7+ {[%emt 0:01:00]} Rxh7 {[%emt 0:06:12]} 24. Bxb7 {[%emt 0:03:10]} Qxb7 {[%emt 0:00:11]} 25. h5 {[%emt 0:02:03]} b4 {[%emt 0:10:03]} 26. Ne2 {[%emt 0:00:18]} Na3+ {[%emt 0:06:17]} 27. bxa3 {[%emt 0:00:46]} bxa3 {[%emt 0:00:04]} 28. N2d4 {[%emt 0:03:35]} Na4+ {[%emt 0:00:33]} 29. Ka1 {[%emt 0:02:23]} Nc3 {[%emt 0:00:53]} 30. Nb3 {[%emt 0:01:58]} Nxd1 {[%emt 0:01:00]} 31. Rxd1 {[%emt 0:00:01]} Rxh5 {[%emt 0:00:27]} 32. Bxa3 {[%emt 0:03:44]} Rh1 {[%emt 0:00:17]} 33. Rxh1 {[%emt 0:01:03]} Qxh1+ {[%emt 0:00:30]} 34. Kb2 {[%emt 0:00:00]} Qe4 {[%emt 0:00:00]} 35. Ned4 {[%emt 0:00:55]} Qg4 {[%emt 0:01:06]} 36. Qe3 {[%emt 0:00:42]} Rc7 {[%emt 0:00:47]} 37. Qe6+ {[%emt 0:01:00]} Kh7 {[%emt 0:00:04]} 38. Bb4 {[%emt 0:00:32]} Rb7 {[%emt 0:00:33]} 39. Bxd6 {[%emt 0:00:41]} Qxd4+ {[%emt 0:00:14]} 40. Kc1 {[%emt 0:00:55]} Qxd6 {[%emt 0:00:17]} 41. Qe1 {[%emt 0:00:42]} Qf4+ {[%emt 0:00:38]} 42. Kb1 {[%emt 0:00:14]} Rd7 {[%emt 0:00:11]} 43. Qh1+ {[%emt 0:00:50]} Qh6 {[%emt 0:00:04]} 44. Qc6 {[%emt 0:00:12]} Ba3 {[%emt 0:00:29]} 0-1

[Event "Turkish Women-ch Arzum 2022"]
[Site "Ayvalik"]
[Date "2022.03.06"]
[Round "2.25"]
[White "Bodur, Ilke Lal"]
[Black "Turunz, Dilek"]
[Result "0-1"]
[ECO "B22"]
[WhiteElo "1151"]
[BlackElo "1443"]
[Annotator "NA"]
[PlyCount "66"]
[EventDate "2022.03.04"]
[EventType "swiss"]
[EventCountry "TUR"]
[SourceTitle "playchess.com"]
[Source "ChessBase"]
[SourceQuality "1"]
[TimeControl "5400+30"]

1. e4 c5 2. c3 Qa5 3. Nf3 Nc6 4. Bc4 Nf6 5. e5 d5 6. exd6 exd6 {[%emt 0:05:30]} 7. Qb3 {[%emt 0:16:00]} Qc7 {[%emt 0:03:30]} 8. O-O {[%emt 0:02:30]} Na5 {[%emt 0:07:30]} 9. Re1+ {[%emt 0:16:30]} Be7 {[%emt 0:00:30]} 10. Qa4+ {[%emt 0:01:30]} Bd7 {[%emt 0:00:30]} 11. Bb5 {[%emt 0:00:30]} Bxb5 {[%emt 0:02:30]} 12. Qxb5+ {[%emt 0:00:00]} Nc6 {[%emt 0:00:30]} 13. d4 {[%emt 0:01:00]} O-O {[%emt 0:00:30]} 14. Qd3 {[%emt 0:00:30]} d5 {[%emt 0:03:30]} 15. b3 {[%emt 0:04:30]} cxd4 {[%emt 0:02:30]} 16. Nxd4 {[%emt 0:02:30]} Bc5 {[%emt 0:04:30]} 17. h3 {[%emt 0:09:30]} Bxd4 {[%emt 0:03:30]} 18. Ba3 {[%emt 0:04:30]} Rfe8 {[%emt 0:02:30]} 19. Nd2 {[%emt 0:01:30]} Bb6 {[%emt 0:02:30]} 20. Nf3 {[%emt 0:03:30]} Ne4 {[%emt 0:07:30]} 21. Nd4 {[%emt 0:01:30]} Qf4 {[%emt 0:01:30]} 22. Re2 {[%emt 0:02:30]} Ne5 {[%emt 0:00:30]} 23. Qc2 {[%emt 0:05:30]} Nxc3 {[%emt 0:02:30]} 24. Bc1 {[%emt 0:02:30]} Nxe2+ {[%emt 0:00:30]} 25. Nxe2 {[%emt 0:01:30]} Qxf2+ {[%emt 0:00:30]} 26. Kh1 {[%emt 0:00:30]} Nf3 {[%emt 0:01:30]} 27. gxf3 {[%emt 0:00:30]} Qf1+ {[%emt 0:00:30]} 28. Kh2 {[%emt 0:00:30]} Rxe2+ {[%emt 0:00:30]} 29. Qxe2 {[%emt 0:00:30]} Qxe2+ {[%emt 0:00:00]} 30. Kg3 {[%emt 0:00:00]} Bf2+ {[%emt 0:00:00]} 31. Kg4 {[%emt 0:00:00]} h5+ {[%emt 0:00:30]} 32. Kf4 {[%emt 0:00:30]} Re8 {[%emt 0:00:30]} 33. h4 {[%emt 0:00:00]} Qe5# {[%emt 0:00:30]} 0-1